[Event "7th Sharjah Masters 2024"]
[Site "Sharjah"]
[Date "2024.05.20"]
[Round "7.29"]
[White "Sjugirov, Sanan"]
[Black "Moroni, Luca Jr"]
[Result "1/2-1/2"]
[ECO "C78"]
[WhiteElo "2692"]
[BlackElo "2581"]
[Annotator "TA"]
[PlyCount "81"]
[EventDate "2024.05.13"]
[EventType "swiss"]
[EventCountry "UAE"]
[SourceTitle "playchess.com"]
[Source "ChessBase"]
[SourceQuality "1"]
[TimeControl "5400+30"]

{[%evp 24,81,35,27,27,21,29,27,30,27,22,7,5,0,0,0,0,0,21,0,6,0,0,0,0,0,2,0,0,0,0,0,0,0,0,0,0,0,0,0,0,0,0,0,0,0,0,0,0,0,0,0,0,0,0,0,0,0,0,0]} 1. e4 {[%emt 0:00:04]} e5 {[%emt 0:00:05]} 2. Nf3 {[%emt 0:00:06]} Nc6 {[%emt 0:00:04]} 3. Bb5 {[%emt 0:00:13]} a6 {[%emt 0:00:17]} 4. Ba4 {[%emt 0:00:08]} Nf6 {[%emt 0:00:06]} 5. O-O {[%emt 0:00:22]} b5 {[%emt 0:00:05]} 6. Bb3 {[%emt 0:00:05]} Bc5 {[%emt 0:00:04]} 7. a4 {[%emt 0:01:07]} Rb8 {[%emt 0:00:04]} 8. c3 {[%emt 0:01:15]} d6 {[%emt 0:00:06]} 9. d4 {[%emt 0:00:11]} Bb6 {[%emt 0:00:04]} 10. axb5 {[%emt 0:00:05]} axb5 {[%emt 0:00:05]} 11. Na3 {[%emt 0:00:05]} O-O {[%emt 0:01:43]} 12. Nxb5 {[%emt 0:00:09]} Bg4 {[%emt 0:00:14]} 13. Bc2 {[%emt 0:00:33]} Bxf3 {[%emt 0:01:21]} 14. gxf3 {[%emt 0:00:11]} exd4 {[%emt 0:04:36]} 15. Nxd4 {[%emt 0:01:58]} Nxd4 {[%emt 0:00:55] White has an edge.} 16. cxd4 {[%emt 0:00:07]} Nh5 {[%emt 0:00:47]} 17. Kh1 {[%emt 0:23:12] The position is equal.} Qf6 {[%emt 0:08:19] Repels f4} 18. Ra4 {[%emt 0:02:04]} Ra8 $1 {[%emt 0:04:11]} 19. Be3 {[%emt 0:20:45]} Rxa4 {[%emt 0:20:53]} 20. Bxa4 {[%emt 0:00:08]} Ra8 {[%emt 0:00:10]} 21. Bd7 {[%emt 0:12:00]} g6 {[%emt 0:04:10]} 22. Rg1 {[%emt 0:04:00]} Ra2 {[%emt 0:08:13]} 23. Bg4 {[%emt 0:05:44]} Nf4 {[%emt 0:09:10]} 24. Bf5 {[%emt 0:01:56]} Nh5 {[%emt 0:01:57]} 25. Bg4 {[%emt 0:17:35]} Nf4 {[%emt 0:00:21]} 26. Qd2 {[%emt 0:01:23]} Ne6 {[%emt 0:05:16]} 27. e5 {[%emt 0:00:14]} dxe5 {[%emt 0:01:20]} 28. dxe5 {[%emt 0:01:10]} Qxe5 {[%emt 0:02:45]} 29. Bxe6 {[%emt 0:00:06]} Qxe6 {[%emt 0:01:17]} 30. Qd8+ {[%emt 0:00:04]} Kg7 {[%emt 0:00:04]} 31. Bd2 {[%emt 0:00:04]} Qd6 {[%emt 0:14:16]} 32. Bc3+ {[%emt 0:01:23]} f6 {[%emt 0:00:01]} 33. Rd1 {[%emt 0:00:36]} Qxd8 {[%emt 0:00:03]} 34. Rxd8 $11 {[%emt 0:00:03][%mdl 4096] Endgame. KRB-KRB} g5 {[%emt 0:00:09]} 35. f4 {[%emt 0:02:46]} gxf4 {[%emt 0:00:51][%cal Of4f3]} 36. Kg2 {[%emt 0:00:41]} Ra4 {[%emt 0:01:09]} 37. Kf3 {[%emt 0:00:53]} Rc4 {[%emt 0:00:05]} 38. Re8 {[%emt 0:03:00]} Kf7 {[%emt 0:00:15]} 39. Rh8 {[%emt 0:00:05]} Kg7 {[%emt 0:00:05]} 40. Re8 {[%emt 0:00:04]} Kf7 {[%emt 0:00:03]} 41. Rh8 {[%emt 0:00:06] A balanced but interesting game.   Weighted Error Value: White=0.02 (flawless) /Black=0.01 (flawless) .  OK:         	White=14    	Black=12     Best:        	White=1     	Black=3      Strong:       	---       	Black=1} 1/2-1/2

[Event "7th Sharjah Masters 2024"]
[Site "Sharjah"]
[Date "2024.05.20"]
[Round "7.30"]
[White "Mchedlishvili, Mikheil"]
[Black "Yilmaz, Mustafa"]
[Result "1/2-1/2"]
[ECO "E04"]
[WhiteElo "2569"]
[BlackElo "2641"]
[Annotator "TA"]
[PlyCount "28"]
[EventDate "2024.05.13"]
[EventType "swiss"]
[EventCountry "UAE"]
[SourceTitle "playchess.com"]
[Source "ChessBase"]
[SourceQuality "1"]
[TimeControl "5400+30"]

{[%evp 18,28,22,14,11,29,20,0,0,0,4,-3,0]} 1. d4 {[%emt 0:01:05]} Nf6 {[%emt 0:00:06]} 2. c4 {[%emt 0:00:27]} e6 {[%emt 0:00:05]} 3. Nf3 {[%emt 0:00:42]} d5 {[%emt 0:00:05]} 4. g3 {[%emt 0:01:10]} dxc4 {[%emt 0:00:21]} 5. Bg2 {[%emt 0:00:39]} c5 {[%emt 0:00:06]} 6. O-O {[%emt 0:01:14]} Nc6 {[%emt 0:00:36]} 7. dxc5 {[%emt 0:05:23]} Qxd1 {[%emt 0:00:09]} 8. Rxd1 {[%emt 0:00:05]} Bxc5 {[%emt 0:00:04]} 9. Nbd2 {[%emt 0:00:39]} c3 {[%emt 0:00:17]} 10. bxc3 {[%emt 0:00:07]} O-O {[%emt 0:00:06]} 11. Bb2 {[%emt 0:02:20]} Bd7 {[%emt 0:07:18]} 12. Ne1 {[%emt 0:00:46] The position is equal.} Rfd8 {[%emt 0:05:36]} 13. Nd3 {[%emt 0:03:00]} Be7 {[%emt 0:00:46]} 14. c4 {[%emt 0:02:32]} b6 {[%emt 0:04:43] A rather calm draw.   Weighted Error Value: White=0.05 (flawless) /Black=0.01 (flawless) .  OK:         	White=2     	Black=2} 1/2-1/2

[Event "7th Sharjah Masters 2024"]
[Site "Sharjah"]
[Date "2024.05.20"]
[Round "7.31"]
[White "Banusz, Tamas"]
[Black "Dudin, Gleb"]
[Result "1-0"]
[ECO "D11"]
[WhiteElo "2623"]
[BlackElo "2554"]
[Annotator "TA"]
[PlyCount "91"]
[EventDate "2024.05.13"]
[EventType "swiss"]
[EventCountry "UAE"]
[SourceTitle "playchess.com"]
[Source "ChessBase"]
[SourceQuality "1"]
[TimeControl "5400+30"]

{[%evp 11,91,0,0,0,0,0,0,0,19,0,0,0,0,0,37,56,37,35,47,55,59,64,60,72,62,63,49,54,64,23,108,139,146,149,146,142,141,144,146,161,148,148,203,107,196,197,211,212,225,205,182,193,310,310,290,181,302,277,300,305,309,304,292,311,401,406,306,264,410,322,316,310,443,456,458,412,413,404,544,534,487,460]} 1. d4 {[%emt 1:31:00]} Nf6 {[%emt 1:31:00]} 2. g3 {[%emt 0:00:30]} d5 {[%emt 0:00:30]} 3. Nf3 {[%emt 0:00:30]} Bf5 {[%emt 0:00:30]} 4. Bg2 {[%emt 0:00:30]} h6 {[%emt 0:00:30]} 5. c4 {[%emt 0:00:30]} c6 {[%emt 0:00:30]} 6. Nc3 {[%emt 0:00:30]} e6 $1 {[%emt 0:00:30]} 7. Qb3 {[%emt 0:00:30]} Qb6 {[%emt 0:00:30]} 8. c5 {[%emt 0:00:30]} Qxb3 {[%emt 0:00:30]} 9. axb3 {[%emt 0:00:30][%cal Ba2b3,Bb3b4,Bb4b5,Bb5c6][%mdl 32] The position is equal.} Na6 {[%emt 0:00:30]} 10. Ra4 {[%emt 0:00:30]} Nd7 {[%emt 0:00:30]} 11. h4 {[%emt 0:00:30]} e5 {[%emt 0:00:30]} 12. b4 {[%emt 0:00:30]} Bc2 {[%emt 0:00:30] [#] ...e4 is the strong threat.} 13. Rxa6 $1 {[%emt 0:00:30]} bxa6 {[%emt 0:00:30]} 14. dxe5 {[%emt 0:00:30] Black must now prevent Nd4.} a5 {[%emt 0:00:30]} 15. b5 {[%emt 0:00:30]} Bxc5 {[%emt 0:00:30]} (15... Nxc5 $2 {is the wrong capture.} 16. Nd4 (16. bxc6 Ne6 $14) 16... Be4 17. f3 $16) 16. bxc6 {[%emt 0:00:30]} Nb6 {[%emt 0:00:30]} 17. Be3 {[%emt 0:00:30]} Bxe3 {[%emt 0:00:30]} 18. fxe3 {[%emt 0:00:30]} Be4 {[%emt 0:00:30]} 19. Bh3 {[%emt 0:00:30] Black is weak on the dark squares} O-O {[%emt 0:00:30]} 20. Kf2 {[%emt 0:00:30]} Bxf3 {[%emt 0:00:30]} (20... f6 $1 $11) 21. exf3 $16 {[%emt 0:00:30]} Rac8 {[%emt 0:00:30]} 22. Bxc8 {[%emt 0:00:30]} Rxc8 {[%emt 0:00:30][%mdl 4096] Endgame. KRN-KRN} 23. Ra1 {[%emt 0:00:30] White is more active.} Rxc6 {[%emt 0:00:30]} 24. Rxa5 {[%emt 0:00:30]} Nc4 {[%emt 0:00:30]} 25. Rxd5 {[%emt 0:00:30]} Nxb2 {[%emt 0:00:30]} 26. Ne2 {[%emt 0:00:30]} Nc4 {[%emt 0:00:30]} (26... a5 $16) 27. Rd8+ $18 {[%emt 0:00:30]} Kh7 {[%emt 0:00:30] [#]} 28. f4 $1 {[%emt 0:00:30]} a5 {[%emt 0:00:30]} 29. Ra8 {[%emt 0:00:30]} Rb6 {[%emt 0:00:30]} 30. Nd4 {[%emt 0:00:30]} Rb2+ {[%emt 0:00:30]} 31. Kf3 {[%emt 0:00:30]} h5 {[%emt 0:00:30]} (31... Nd2+ {keeps fighting.} 32. Ke2 (32. Kg4 Nf1 $16) 32... Ne4+ 33. Kf3 Nd2+ 34. Kg4 Nf1) 32. Ra7 {[%emt 0:00:30]} Kg8 {[%emt 0:00:30]} 33. e6 {[%emt 0:00:30]} Nd2+ {[%emt 0:00:30]} (33... fxe6 {is a better defense.} 34. Nxe6 g6) 34. Ke2 {[%emt 0:00:30]} Nb3+ {[%emt 0:00:30]} 35. Kd3 {[%emt 0:00:30]} Nc5+ {[%emt 0:00:30]} 36. Kc3 {[%emt 0:00:30]} Na4+ {[%emt 0:00:30]} 37. Kc4 {[%emt 0:00:30]} Nb6+ {[%emt 0:00:30]} 38. Kd3 {[%emt 0:00:30]} fxe6 {[%emt 0:00:30]} 39. Rxa5 {[%emt 0:00:30]} Kf7 {[%emt 0:00:30]} (39... Rg2 $142 40. Nxe6 (40. Rxh5 Rxg3 41. Nxe6 Kf7 $18) 40... Rxg3 41. Rxh5 Rg6) 40. Rxh5 {[%emt 0:00:30]} Rg2 {[%emt 0:00:30]} 41. Rg5 {[%emt 0:00:30]} Nd5 {[%emt 0:00:30]} (41... Nd7 {was necessary.} 42. h5 Nf6) 42. f5 {[%emt 0:00:30]} exf5 {[%emt 0:00:30]} 43. Nxf5 {[%emt 0:00:30]} Nb4+ {[%emt 0:00:30]} 44. Kc4 {[%emt 0:00:30]} Nc2 {[%emt 0:00:30]} 45. Rxg7+ {[%emt 0:00:30]} Kf6 {[%emt 0:00:30]} 46. Rg5 {[%emt 0:00:30] Weighted Error Value: White=0.09 (flawless) /Black=0.27 (precise) .  Mistake:       	---       	Black=6      Inaccurate:     	White=2     	Black=3      OK:         	White=18    	Black=16     Best:        	White=7     	Black=3      Strong:       	White=1     	---        Brilliant:      	White=1     	---} 1-0

[Event "7th Sharjah Masters 2024"]
[Site "Sharjah"]
[Date "2024.05.20"]
[Round "7.32"]
[White "Yilmazyerli, Mert"]
[Black "Ivanchuk, Vasyl"]
[Result "1/2-1/2"]
[ECO "D37"]
[WhiteElo "2522"]
[BlackElo "2609"]
[Annotator "TA"]
[PlyCount "50"]
[EventDate "2024.05.13"]
[EventType "swiss"]
[EventCountry "UAE"]
[SourceTitle "playchess.com"]
[Source "ChessBase"]
[SourceQuality "1"]
[TimeControl "5400+30"]

{[%evp 9,50,15,23,28,25,25,29,27,25,20,25,27,23,24,21,23,22,20,25,29,25,14,22,0,10,5,5,7,38,36,33,29,123,113,133,129,131,176,159,123,158,19,44]} 1. d4 {[%emt 0:03:45]} Nf6 {[%emt 0:00:18]} 2. c4 {[%emt 0:01:06]} e6 {[%emt 0:00:05]} 3. Nf3 {[%emt 0:00:09]} a6 {[%emt 0:00:17]} 4. Nc3 {[%emt 0:01:33]} d5 {[%emt 0:00:04]} 5. cxd5 {[%emt 0:04:54]} exd5 {[%emt 0:00:12]} 6. Bg5 {[%emt 0:00:47]} Be6 {[%emt 0:00:07]} 7. e3 {[%emt 0:00:07]} Nbd7 {[%emt 0:00:07]} 8. h3 {[%emt 0:02:02] White has an edge.} Bd6 {[%emt 0:01:33]} 9. Bd3 {[%emt 0:00:07]} c6 {[%emt 0:00:15]} 10. Bf4 {[%emt 0:00:23]} Qc7 {[%emt 0:00:20]} 11. Bxd6 {[%emt 0:00:07]} Qxd6 {[%emt 0:00:04]} 12. O-O {[%emt 1:21:30]} O-O {[%emt 0:00:45]} 13. Qc2 {[%emt 0:00:00]} g6 {[%emt 0:04:23]} 14. Rad1 {[%emt 0:00:00]} Nh5 {[%emt 0:05:23][%cal Bf6h5,Bh5g7,Bg7f5][%mdl 32]} 15. b4 {[%emt 0:00:00]} Ng7 {[%emt 0:00:39]} 16. Qb1 {[%emt 0:00:00]} Bf5 {[%emt 0:07:43]} 17. Bxf5 {[%emt 0:00:00]} Nxf5 {[%emt 0:00:20]} 18. a4 {[%emt 0:00:00]} Rfc8 {[%emt 0:08:01]} 19. e4 {[%emt 0:00:00]} dxe4 {[%emt 0:00:43]} 20. Nxe4 {[%emt 0:00:00]} Qd5 {[%emt 0:18:41] [#]} (20... Qe7 $11) 21. Ne5 $1 $16 {[%emt 0:00:00][%mdl 512] Hoping for Nxd7.} Kg7 {[%emt 0:00:02]} (21... Kh8 22. Nxd7) 22. Nc3 {[%emt 0:00:00]} Qd6 {[%emt 0:00:05] [#]} 23. Nxd7 {[%emt 0:00:00]} Qxd7 {[%emt 0:00:04]} 24. d5 {[%emt 0:00:00][%cal Od5d6] Black must now prevent d6!} Re8 {[%emt 0:01:52] [#]} 25. Qb2 {[%emt 0:00:00]} ({Only move:} 25. d6 $1 $16) 25... f6 $1 {[%emt 0:01:34] Weighted Error Value: White=0.08 (flawless) /Black=0.15 (very precise) .  Mistake:       	White=1     	Black=1      Inaccurate:     	---       	Black=1      OK:         	White=8     	Black=6      Best:        	White=2     	---        Strong:       	---       	Black=1      Brilliant:      	White=1     	---} 1/2-1/2

[Event "7th Sharjah Masters 2024"]
[Site "Sharjah"]
[Date "2024.05.20"]
[Round "7.33"]
[White "Aditya Mittal"]
[Black "Erdogmus, Yagiz Kaan"]
[Result "0-1"]
[ECO "B12"]
[WhiteElo "2608"]
[BlackElo "2554"]
[Annotator "TA"]
[PlyCount "64"]
[EventDate "2024.05.13"]
[EventType "swiss"]
[EventCountry "UAE"]
[SourceTitle "playchess.com"]
[Source "ChessBase"]
[SourceQuality "1"]
[TimeControl "5400+30"]

{[%evp 9,64,6,0,0,40,0,0,0,0,11,2,0,4,-14,-2,-12,-8,-18,-10,-22,-22,-229,-128,-129,-113,-349,-349,-406,-429,-409,-225,-210,-229,-187,-153,-288,-285,-275,-238,-503,-500,-849,-822,-29987,-29988,-29988,-29989,-29989,-29990,-29990,-29991,-29994,-29995,-29997,-29998,-29998,-29999]} 1. e4 {[%emt 0:00:02]} c6 {[%emt 0:00:09]} 2. d4 {[%emt 0:00:01]} d5 {[%emt 0:00:06]} 3. e5 {[%emt 0:00:02]} c5 {[%emt 0:00:13]} 4. Nf3 {[%emt 0:00:02]} cxd4 {[%emt 0:00:06]} 5. Qxd4 {[%emt 0:00:02]} Nc6 {[%emt 0:00:10]} 6. Qf4 {[%emt 0:00:01]} f6 {[%emt 0:00:07]} 7. Qg3 {[%emt 0:05:59]} g5 {[%emt 0:23:51]} 8. Bb5 {[%emt 0:05:46] The position is equal.} Nh6 $1 {[%emt 0:01:02] Hoping for ...Nf5.} 9. Nd4 {[%emt 0:05:16]} Qb6 {[%emt 0:03:43]} 10. c3 {[%emt 0:13:50]} Nf5 {[%emt 0:12:20]} 11. Bxc6+ {[%emt 0:00:28] [#]} Qxc6 $1 {[%emt 0:05:13]} 12. Nxf5 {[%emt 0:05:39]} Bxf5 {[%emt 0:00:02]} 13. O-O {[%emt 0:00:09]} h5 {[%emt 0:12:59]} 14. exf6 {[%emt 0:05:50]} exf6 {[%emt 0:00:07]} 15. h4 $2 {[%emt 0:00:16] White is weak on the light squares} (15. Qf3 $11 {and White is okay.} Be4 16. Qe2) 15... gxh4 {[%emt 0:09:04] Active counter play!} ({Black should try} 15... O-O-O $19 {...gxh4 is the strong threat.} 16. hxg5 h4) 16. Qxh4 $17 {[%emt 0:06:26]} O-O-O {[%emt 0:00:11] ...Rg8 would now be deadly.} 17. Be3 $2 {[%emt 0:00:47]} (17. Bf4 $17) 17... Rg8 $19 {[%emt 0:02:33][%cal Od5d4]} 18. Bd4 {[%emt 0:05:36]} Bd6 {[%emt 0:00:57] And now ...Rg4 would win.} 19. Nd2 {[%emt 0:08:17]} Rg6 {[%emt 0:11:56]} (19... Rg4 $142 20. Qxh5 Qd7) 20. f4 {[%emt 0:07:01]} Rdg8 {[%emt 0:02:05]} 21. Rf2 {[%emt 0:00:02]} Qd7 {[%emt 0:01:20]} 22. Bxf6 {[%emt 0:05:05]} (22. Re1 $17 {might work better.}) 22... Rg4 {[%emt 0:03:08]} 23. Qxh5 {[%emt 0:01:51]} Bxf4 {[%emt 0:01:01]} ({Don't play} 23... Rxf4 24. Bd4 $19) 24. Bd4 {[%emt 0:06:47] Prevents Be3.} (24. Re1 Bg3 25. Ref1 Bxf2+ 26. Rxf2) 24... R4g5 {[%emt 0:01:01]} 25. Qe2 {[%emt 0:04:32] [#]} (25. Qh1 $142 Bh3 26. Nb3) 25... Bh3 $1 {[%emt 0:02:37][%cal Oh3g2] aiming for ...Bxg2! This pair of bishops is nice.} 26. Nf1 {[%emt 0:00:13] [#]} (26. Re1 Rxg2+) 26... Bxg2 $1 {[%emt 0:02:34] Black mates.} 27. Rxg2 {[%emt 0:00:12]} Qh3 {[%emt 0:00:57]} 28. Rxg5 {[%emt 0:00:22]} Rxg5+ {[%emt 0:00:06]} 29. Kf2 {[%emt 0:00:01]} Qh4+ {[%emt 0:00:15]} 30. Ng3 {[%emt 0:01:14]} Bxg3+ {[%emt 0:00:29]} 31. Ke3 {[%emt 0:01:12]} Bf4+ {[%emt 0:00:06]} 32. Kd3 {[%emt 0:00:07]} Qh7+ {[%emt 0:00:01] Weighted Error Value: White=0.82/Black=0.17 (very precise) .  Loses game:     	White=2     	---        Mistake:       	White=3     	Black=2      Inaccurate:     	White=2     	Black=1      OK:         	White=6     	Black=6      Best:        	White=1     	Black=3      Strong:       	---       	Black=1      Brilliant:      	---       	Black=1} 0-1

[Event "7th Sharjah Masters 2024"]
[Site "Sharjah"]
[Date "2024.05.20"]
[Round "7.34"]
[White "Idani, Pouya"]
[Black "Erdos, Viktor"]
[Result "1-0"]
[ECO "C43"]
[WhiteElo "2605"]
[BlackElo "2546"]
[Annotator "TA"]
[PlyCount "131"]
[EventDate "2024.05.13"]
[EventType "swiss"]
[EventCountry "UAE"]
[SourceTitle "playchess.com"]
[Source "ChessBase"]
[SourceQuality "1"]
[TimeControl "5400+30"]

{[%evp 70,131,148,90,158,160,196,116,220,87,324,320,327,321,325,319,334,333,334,327,320,242,286,230,208,206,219,210,327,328,306,313,315,324,291,260,525,542,958,958,787,881,1987,1927,6370,6243,29968,4979,1652,1481,29975,29975,29975,29976,29976,29978,29978,29979,29978,29979,29980,29981,29981,29982]} 1. e4 {[%emt 0:00:02]} e5 {[%emt 0:01:19]} 2. Nf3 {[%emt 0:00:07]} Nf6 {[%emt 0:00:06]} 3. d4 {[%emt 0:00:11]} Nxe4 {[%emt 0:00:07]} 4. dxe5 {[%emt 0:00:51]} d5 {[%emt 0:00:06]} 5. Nbd2 {[%emt 0:00:04]} Qd7 {[%emt 0:00:04]} 6. Bd3 {[%emt 0:00:20]} Nc5 {[%emt 0:00:20]} 7. Be2 {[%emt 0:00:05]} Ne6 {[%emt 0:00:30]} 8. Nf1 {[%emt 0:02:00]} b6 {[%emt 0:04:09]} 9. Ne3 {[%emt 0:04:57]} Bb7 {[%emt 0:08:48]} 10. c3 {[%emt 0:05:15]} Nf4 {[%emt 0:25:34]} 11. Bf1 {[%emt 0:12:12]} Bc5 {[%emt 0:21:30]} 12. b4 {[%emt 0:16:46]} Be7 {[%emt 0:09:37]} 13. Qc2 {[%emt 0:15:09]} O-O {[%emt 0:10:55]} 14. Nf5 {[%emt 0:00:16]} Ng6 {[%emt 0:00:15]} 15. Bd3 {[%emt 0:00:30]} Re8 {[%emt 0:07:02]} 16. O-O {[%emt 0:03:00]} Bf8 {[%emt 0:00:03]} 17. N5d4 {[%emt 0:01:42]} Nc6 {[%emt 0:03:23]} 18. e6 {[%emt 0:20:24]} fxe6 {[%emt 0:01:04]} 19. Bxg6 {[%emt 0:00:07]} hxg6 {[%emt 0:00:39]} 20. Nxc6 {[%emt 0:00:10]} Qxc6 {[%emt 0:00:11]} 21. Ne5 {[%emt 0:00:06]} Qd6 {[%emt 0:00:08]} 22. Bf4 {[%emt 0:00:04]} Qe7 {[%emt 0:02:40]} 23. Qxg6 {[%emt 0:02:05]} Qf6 {[%emt 0:00:19]} 24. Qg3 {[%emt 0:01:43]} Bd6 {[%emt 0:00:09]} 25. Qe3 {[%emt 0:00:09]} Rf8 {[%emt 0:00:52]} 26. Bg3 {[%emt 0:00:07]} Qh6 {[%emt 0:01:51]} 27. Qxh6 {[%emt 0:03:30]} gxh6 {[%emt 0:00:02]} 28. Rfe1 {[%emt 0:00:06]} Rae8 {[%emt 0:01:30]} 29. Nf3 {[%emt 0:02:00]} Rf6 {[%emt 0:01:10]} 30. Re3 {[%emt 0:00:27]} a5 {[%emt 0:00:30]} 31. bxa5 {[%emt 0:01:24]} bxa5 {[%emt 0:00:01]} 32. Rb1 {[%emt 0:00:11]} Ba6 {[%emt 0:00:57]} 33. Bxd6 {[%emt 0:01:53]} cxd6 {[%emt 0:00:01]} 34. Rb6 {[%emt 0:00:06]} Bc4 {[%emt 0:00:25]} 35. Rxd6 {[%emt 0:00:27]} Rb8 {[%emt 0:00:27]} 36. h3 {[%emt 0:00:28]} (36. Rdxe6 $2 Rxe6 37. Rxe6 d4 $19) (36. h4 $142) 36... Rb1+ {[%emt 0:00:25]} (36... Bxa2 $142 37. Ra6 (37. Rdxe6 Rxe6 38. Rxe6 Ra8 $11) 37... d4 38. cxd4 Bd5) 37. Kh2 $16 {[%emt 0:00:35]} Bxa2 {[%emt 0:01:17]} 38. Ra6 {[%emt 0:01:33]} (38. Rexe6 $6 Rxe6 39. Rxe6 a4 $16) (38. Ne5 $1 $18 {Threatens to win with Rg3+.} Rb7 39. Ng4) 38... Rb2 {[%emt 0:00:11] [#]} (38... d4 $16 39. cxd4 Bd5) 39. Ra8+ {[%emt 0:00:46]} (39. Raxe6 Rxe6 40. Rxe6 Rxf2 $11) (39. Rxa5 $6 Bb1 $16) (39. Ne5 $1 $18 {is the precise move to win. Rg3+ is the strong threat.} Rb7 40. Rxa5) 39... Kg7 $2 {[%emt 0:00:41] [#]} (39... Rf8 $16 {was called for.} 40. Rxa5 Rxf2) 40. Ne5 $1 $18 {[%emt 0:00:54]} (40. Rxa5 Bb1 $16) 40... Rfxf2 {[%emt 0:00:31]} 41. Rg3+ {[%emt 0:00:16]} (41. Rxa5 Rxg2+ 42. Kh1 Bb1 43. Ra7+ Kf6 44. Rf7+ Kg5 45. Nf3+ (45. Rg7+ $2 Kf4 $19) 45... Kg6 $19) 41... Kf6 {[%emt 0:00:34]} 42. Ng4+ {[%emt 0:00:05]} Ke7 {[%emt 0:00:12]} 43. Nxf2 {[%emt 0:01:07]} ({Less strong is} 43. Rxa5 Rfe2 $16) ({Worse is} 43. Nxh6 d4 44. Ra7+ (44. Rxa5 dxc3 45. Ra7+ Kd6 $17) (44. cxd4 Rxg2+ 45. Rxg2 Rxg2+ 46. Kxg2 Bd5+ 47. Kf1 Bxa8 $11) 44... Kd6 45. Ra6+ (45. cxd4 Bd5 $11) (45. Ng4 Rfe2 $11) 45... Ke7 (45... Kc5 46. Rxa5+ Kb6 47. Rag5 $11) 46. Ra7+ (46. cxd4 Bd5 $11) 46... Kd6 $11) 43... Rxf2 {[%emt 0:00:02]} 44. Rxa5 {[%emt 0:00:09]} Bb1 {[%emt 0:00:09]} 45. Ra7+ {[%emt 0:00:34]} Kd6 {[%emt 0:00:09]} 46. Rf3 {[%emt 0:01:37]} Re2 {[%emt 0:00:28]} 47. Ra6+ {[%emt 0:00:55]} Kc5 {[%emt 0:00:54]} 48. Ra8 {[%emt 0:01:07]} Be4 {[%emt 0:00:38]} (48... h5 {keeps fighting.} 49. Rc8+ Kd6 50. Rd8+ Ke7) 49. Rg3 $18 {[%emt 0:00:06]} Rf2 {[%emt 0:00:41]} 50. Rh8 {[%emt 0:01:38]} Rf6 {[%emt 0:00:02]} 51. Kg1 {[%emt 0:00:10]} Kd6 {[%emt 0:00:40]} 52. Rgg8 {[%emt 0:00:45]} Kc5 $2 {[%emt 0:01:27]} (52... Ke5 {was worth a try.} 53. Rf8 Rg6) 53. Rf8 $18 {[%emt 0:02:00]} Rg6 {[%emt 0:00:28]} 54. Rhg8 {[%emt 0:00:07]} Rxg8 {[%emt 0:00:32]} 55. Rxg8 {[%emt 0:00:04]} Kc4 {[%emt 0:00:21]} 56. Re8 {[%emt 0:00:42]} Kxc3 {[%emt 0:00:46]} 57. Rxe6 {[%emt 0:00:05]} h5 {[%emt 0:00:22]} 58. Kf2 {[%emt 0:00:06]} (58. g4 $142 hxg4 59. hxg4 Kd4 60. Kf2 Bh7 61. Ke1 Bg8 62. Rb6 Kc5 63. Rf6) 58... Bc2 {[%emt 0:00:45]} 59. Rc6+ {[%emt 0:01:30]} Kd2 {[%emt 0:00:08]} 60. Rd6 {[%emt 0:00:55]} Bb3 {[%emt 0:00:51]} 61. g4 {[%emt 0:00:05]} hxg4 {[%emt 0:00:03]} 62. hxg4 {[%emt 0:00:04]} Kd3 {[%emt 0:00:09]} 63. g5 {[%emt 0:00:05]} Ke4 {[%emt 0:01:18]} 64. g6 {[%emt 0:00:05]} Kf5 {[%emt 0:00:08]} 65. g7 {[%emt 0:00:05]} d4 {[%emt 0:00:05]} 66. Rd8 {[%emt 0:00:02]} 1-0